fUSD/lending_fUSD_20250930
["ID","MTS","AMOUNT","RATE_DAILY","PERIOD"]
[388591720,1759246335349,-500.0,0.00020273,2]
[388591721,1759246335359,-1282.5,0.00020273,2]
[388591722,1759246335369,-500.0,0.00020273,2]
[388591723,1759246335380,-500.0,0.00020273,2]
[388591724,1759246335390,-5037.2,0.00020273,2]
[388591725,1759246335400,-3833.9,0.00020273,2]
[388591726,1759246335410,-3942.29,0.00020273,2]
[388591727,1759246335419,-500.0,0.00020273,2]
[388591728,1759246335429,-703.44,0.00020273,2]
[388591729,1759246335439,-4837.09,0.00020273,2]
[388591730,1759246335448,-500.0,0.00020273,2]
[388591731,1759246335458,-500.0,0.00020273,2]
[388591732,1759246335467,-3222.19,0.00020273,2]
[388591733,1759246335479,-3184.79,0.00020273,2]
[388591734,1759246335488,-5309.29,0.00020273,2]
[388591735,1759246335499,-3202.95,0.00020273,2]
[388591736,1759246335510,-500.0,0.00020273,2]
[388591737,1759246335520,-500.0,0.00020273,2]
[388591738,1759246335530,-1568.57,0.00020273,2]
[388591739,1759246335540,-1844.88,0.00020273,2]
[388591740,1759246335550,-7963.67,0.00020273,2]
[388591741,1759246335561,-721.68,0.00020273,2]
[388591742,1759246335570,-7321.33,0.00020273,2]
[388591743,1759246335579,-810.92,0.00020273,2]
[388591744,1759246335588,-557.63,0.00020273,2]
[388591745,1759246335597,-3637.94,0.00020273,2]
[388591746,1759246335607,-1289.42,0.00020273,2]
[388591747,1759246335619,-4314.6,0.00020273,2]
[388591748,1759246335627,-2252.6,0.00020273,2]
[388591749,1759246335636,-500.0,0.00020273,2]
[388591750,1759246335645,-6308.86,0.00020273,2]
[388591751,1759246335654,-500.0,0.00020273,2]
[388591752,1759246335663,-500.0,0.00020273,2]
[388591753,1759246335672,-500.0,0.00020273,2]
[388591754,1759246335681,-701.55,0.00020273,2]
[388591755,1759246335690,-4217.23,0.00020273,2]
[388591756,1759246335700,-2853.18,0.00020273,2]
[388591757,1759246335711,-500.0,0.00020273,2]
[388591758,1759246335720,-500.0,0.00020273,2]
[388591759,1759246335730,-2067.5,0.00020273,2]
[388591760,1759246335740,-3408.13,0.00020273,2]
[388591761,1759246335750,-9687.01,0.00020273,2]
[388591762,1759246335760,-4433.48,0.00020273,2]
[388591763,1759246335770,-5575.77,0.00020273,2]
[388591764,1759246335780,-3582.51,0.00020273,2]
[388591765,1759246335790,-2444.13,0.00020273,2]
[388591766,1759246335799,-814.25,0.00020273,2]
[388591767,1759246335808,-1324.63,0.00020273,2]
[388591768,1759246335818,-500.0,0.00020273,2]
[388591769,1759246335828,-11427.76,0.00020273,2]
[388591770,1759246335838,-3104.67,0.00020273,2]
[388591771,1759246335849,-500.0,0.00020273,2]
[388591772,1759246335859,-2971.34,0.00020273,2]
[388591773,1759246335870,-500.0,0.00020273,2]
[388591774,1759246335880,-4088.09,0.00020273,2]
[388591775,1759246335891,-791.86,0.00020273,2]
[388591776,1759246335901,-500.0,0.00020273,2]
[388591777,1759246335911,-818.99,0.00020273,2]
[388591778,1759246335921,-5601.94,0.00020273,2]
[388591779,1759246335931,-3178.75,0.00020273,2]
[388591780,1759246335940,-500.0,0.00020273,2]
[388591781,1759246335948,-500.0,0.00020273,2]
[388591782,1759246335957,-3428.1,0.00020273,2]
[388591783,1759246335967,-812.27,0.00020273,2]
[388591784,1759246335978,-854.016184,0.00020273,2]
[388591785,1759246335989,-500.0,0.00020273,2]
[388591786,1759246336001,-2009.05,0.00020273,2]
[388591787,1759246336011,-2583.72,0.00020273,2]
[388591788,1759246336020,-2100.28,0.00020273,2]
[388591789,1759246336030,-3180.64,0.00020273,2]
[388591790,1759246336040,-731.087656,0.00020273,2]
[388591791,1759246336050,-3259.44,0.00020273,2]
[388591792,1759246336060,-4655.15,0.00020273,2]
[388591793,1759246336070,-1264.61,0.00020273,2]
[388591794,1759246336080,-2065.22,0.00020273,2]
[388591795,1759246336091,-500.0,0.00020273,2]
[388591796,1759246336101,-500.0,0.00020273,2]
[388591797,1759246336111,-1074.54,0.00020273,2]
[388591798,1759246336122,-500.0,0.00020273,2]
[388591799,1759246336133,-2292.66,0.00020273,2]
[388591800,1759246336143,-737.86,0.00020273,2]
[388591801,1759246336153,-3708.48,0.00020273,2]
[388591802,1759246336163,-4093.1,0.00020273,2]
[388591803,1759246336173,-634.55,0.00020273,2]
[388591804,1759246336183,-3228.48,0.00020273,2]
[388591805,1759246336296,-500.0,0.00020273,2]
[388591806,1759246336307,-673.51,0.00020273,2]
[388591807,1759246336317,-949.13,0.00020273,2]
[388591808,1759246336327,-500.0,0.00020273,2]
[388591809,1759246336341,-3104.32,0.00020273,2]
[388591810,1759246336350,-500.0,0.00020273,2]
[388591811,1759246336360,-8635.78,0.00020273,2]
[388591812,1759246336371,-5292.52,0.00020273,2]
[388591813,1759246336381,-3127.17,0.00020273,2]
[388591814,1759246336390,-1196.77,0.00020273,2]
[388591815,1759246336400,-2288.45,0.00020273,2]
[388591816,1759246336413,-1781.58,0.00020273,2]
[388591817,1759246336422,-2737.98,0.00020273,2]
[388591818,1759246336432,-500.0,0.00020273,2]
[388591819,1759246336442,-4544.53,0.00020273,2]
[388591820,1759246336451,-500.0,0.00020273,2]
[388591821,1759246336462,-2797.9,0.00020273,2]
[388591822,1759246336471,-827.76,0.00020273,2]
[388591823,1759246336481,-9263.16,0.00020273,2]
[388591824,1759246336491,-4494.67,0.00020273,2]
[388591825,1759246336501,-6531.02,0.00020273,2]
[388591826,1759246336512,-8791.84,0.00020273,2]
[388591827,1759246336522,-620.84,0.00020273,2]
[388591828,1759246336532,-500.0,0.00020273,2]
[388591829,1759246336542,-500.0,0.00020273,2]
[388591830,1759246336552,-2577.74,0.00020273,2]
[388591831,1759246336566,-5040.71,0.00020273,2]
[388591832,1759246336576,-650.4,0.00020273,2]
[388591833,1759246336588,-623.3,0.00020273,2]
[388591834,1759246336604,-3264.65,0.00020273,2]
[388591835,1759246336614,-500.0,0.00020273,2]
[388591836,1759246336624,-7688.96,0.00020273,2]
[388591837,1759246336640,-2676.52,0.00020273,2]
[388591838,1759246336649,-2401.46,0.00020273,2]
[388591839,1759246336659,-2415.47,0.00020273,2]
[388591840,1759246336669,-2841.3,0.00020273,2]
[388591841,1759246336678,-1043.47,0.00020273,2]
[388591842,1759246336687,-500.0,0.00020273,2]
[388591843,1759246336696,-500.0,0.00020273,2]
[388591844,1759246336705,-500.0,0.00020273,2]
[388591845,1759246336715,-1304.88,0.00020273,2]
[388591846,1759246336725,-500.0,0.00020273,2]
[388591847,1759246336735,-500.0,0.00020273,2]
[388591848,1759246336745,-587.2,0.00020273,2]
[388591849,1759246336755,-2326.48,0.00020273,2]
[388591850,1759246336765,-19914.23,0.00020273,2]
[388591851,1759246336775,-500.0,0.00020273,2]
[388591852,1759246336785,-682.89,0.00020273,2]
[388591853,1759246336796,-500.0,0.00020273,2]
[388591854,1759246336806,-500.0,0.00020273,2]
[388591855,1759246336815,-835.76,0.00020273,2]
[388591856,1759246336825,-6660.32,0.00020273,2]
[388591857,1759246336834,-500.0,0.00020273,2]
[388591858,1759246336844,-2723.14,0.00020273,2]
[388591859,1759246336854,-2954.04,0.00020273,2]
[388591860,1759246336863,-530.75,0.00020273,2]
[388591861,1759246336873,-500.0,0.00020273,2]
[388591862,1759246336884,-289.94966763,0.00020273,2]
[388591863,1759246336893,-500.0,0.00020273,2]
[388591864,1759246336902,-500.0,0.00020273,2]
[388591865,1759246336912,-3047.16,0.00020273,2]
[388591866,1759246336923,-500.0,0.00020273,2]
[388591867,1759246336933,-500.0,0.00020273,2]
[388591868,1759246336942,-3385.36,0.00020273,2]
[388591869,1759246336951,-2622.66,0.00020273,2]
[388591870,1759246336961,-500.0,0.00020273,2]
[388591871,1759246336970,-2609.92,0.00020273,2]
[388591872,1759246336980,-7942.2,0.00020273,2]
[388591873,1759246336990,-739.07,0.00020273,2]
[388591874,1759246336999,-9633.86,0.00020273,2]
[388591875,1759246337009,-835.53,0.00020273,2]
[388591876,1759246337018,-371.78867799,0.00020273,2]
[388591877,1759246337028,-3050.74,0.00020273,2]
[388591878,1759246337037,-500.0,0.00020273,2]
[388591879,1759246337046,-1600.14,0.00020273,2]
[388591880,1759246337055,-1420.36,0.00020273,2]
[388591881,1759246337065,-500.0,0.00020273,2]
[388591882,1759246337073,-500.0,0.00020273,2]
[388591883,1759246337083,-1466.9,0.00020273,2]
[388591884,1759246337092,-4685.47,0.00020273,2]
[388591885,1759246337103,-6705.33,0.00020273,2]
[388591886,1759246337113,-22451.0,0.00020273,2]
[388591887,1759246337122,-2318.18,0.00020273,2]
[388591888,1759246337132,-1047.92,0.00020273,2]
[388591889,1759246337142,-1759.63,0.00020273,2]
[388591890,1759246337151,-4834.6,0.00020273,2]
[388591891,1759246337161,-2716.66,0.00020273,2]
[388591892,1759246337171,-500.0,0.00020273,2]
[388591893,1759246337181,-552.85,0.00020273,2]
[388591894,1759246337191,-222.29933381,0.00020273,2]
[388591895,1759246337200,-500.0,0.00020273,2]
[388591896,1759246337209,-500.0,0.00020273,2]
[388591897,1759246337218,-2583.5,0.00020273,2]
[388591898,1759246337228,-500.0,0.00020273,2]
[388591899,1759246337237,-1715.07,0.00020273,2]
[388591900,1759246337247,-1859.68,0.00020273,2]
[388591901,1759246337256,-3571.8,0.00020273,2]
[388591902,1759246337265,-4639.88,0.00020273,2]
[388591903,1759246337276,-4719.84,0.00020273,2]
[388591904,1759246337285,-2068.03,0.00020273,2]
[388591905,1759246337295,-4651.63,0.00020273,2]
[388591906,1759246337304,-19762.18,0.00020273,2]
[388591907,1759246337314,-500.0,0.00020273,2]
[388591908,1759246337324,-500.0,0.00020273,2]
[388591909,1759246337336,-5357.55,0.00020273,2]
[388591910,1759246337345,-500.0,0.00020273,2]
[388591911,1759246337355,-851.55,0.00020273,2]
[388591912,1759246337364,-500.0,0.00020273,2]
[388591913,1759246337374,-10908.21,0.00020273,2]
[388591914,1759246337383,-2799.17,0.00020273,2]
[388591915,1759246337395,-500.0,0.00020273,2]
[388591916,1759246337404,-500.0,0.00020273,2]
[388591917,1759246337413,-4919.51,0.00020273,2]
[388591918,1759246337422,-850.83,0.00020273,2]
[388591919,1759246337431,-9933.01,0.00020273,2]
[388591920,1759246337440,-3438.86,0.00020273,2]
[388591921,1759246337449,-500.0,0.00020273,2]
[388591922,1759246337458,-696.79,0.00020273,2]
[388591923,1759246337467,-3522.9,0.00020273,2]
[388591924,1759246337476,-2443.38,0.00020273,2]
[388591925,1759246337486,-500.0,0.00020273,2]
[388591926,1759246337495,-739.44,0.00020273,2]
[388591927,1759246337504,-7000.6,0.00020273,2]
[388591928,1759246337513,-5344.2,0.00020273,2]
[388591929,1759246337522,-4531.41,0.00020273,2]
[388591930,1759246337533,-636.3,0.00020273,2]
[388591931,1759246337542,-964.45,0.00020273,2]
[388591932,1759246337552,-500.0,0.00020273,2]
[388591933,1759246337562,-500.0,0.00020273,2]
[388591934,1759246337571,-500.0,0.00020273,2]
[388591935,1759246337581,-562.11,0.00020273,2]
[388591936,1759246337590,-1166.74,0.00020273,2]
[388591937,1759246337600,-500.0,0.00020273,2]
[388591938,1759246337609,-586.73,0.00020273,2]
[388591939,1759246337619,-3703.76,0.00020273,2]
[388591940,1759246337629,-4294.47,0.00020273,2]
[388591941,1759246337638,-562.29,0.00020273,2]
[388591942,1759246337647,-1838.2,0.00020273,2]
[388591943,1759246337657,-500.0,0.00020273,2]
[388591944,1759246337667,-1106.5,0.00020273,2]
[388591945,1759246337677,-504.17,0.00020273,2]
[388591946,1759246337688,-682.43,0.00020273,2]
[388591947,1759246337698,-500.0,0.00020273,2]
[388591948,1759246337709,-897.5,0.00020273,2]
[388591949,1759246337718,-397.53435876,0.00020273,2]
[388591950,1759246337729,-500.0,0.00020273,2]
[388591951,1759246337741,-3826.94,0.00020273,2]
[388591952,1759246337750,-500.0,0.00020273,2]
[388591953,1759246337760,-368.26,0.00020273,2]
[388591954,1759246337769,-1643.92,0.00020273,2]
[388591955,1759246337778,-904.44,0.00020273,2]
[388591956,1759246337787,-500.0,0.00020273,2]
[388591957,1759246337798,-5450.69,0.00020273,2]
[388591958,1759246337809,-3504.09,0.00020273,2]
[388591959,1759246337820,-500.0,0.00020273,2]
[388591960,1759246337830,-1640.77,0.00020273,2]
[388591961,1759246337841,-516.07,0.00020273,2]
[388591962,1759246337851,-699.69,0.00020273,2]
[388591963,1759246337861,-4288.75,0.00020273,2]
[388591964,1759246337872,-585.12,0.00020273,2]
[388591965,1759246337884,-1534.31,0.00020273,2]
[388591966,1759246337893,-940.51,0.00020273,2]
[388591967,1759246337903,-5730.05,0.00020273,2]
[388591968,1759246337915,-4862.57,0.00020273,2]
[388591969,1759246337924,-1249.63,0.00020273,2]
[388591970,1759246337935,-506.08,0.00020273,2]
[388591971,1759246337944,-500.0,0.00020273,2]
[388591972,1759246337953,-500.0,0.00020273,2]
[388591973,1759246337963,-500.0,0.00020273,2]
[388591974,1759246337973,-500.0,0.00020273,2]
[388591975,1759246337982,-603.94,0.00020273,2]
[388591976,1759246337991,-500.0,0.00020273,2]
[388591977,1759246338000,-500.0,0.00020273,2]
[388591978,1759246338010,-500.0,0.00020273,2]
[388591979,1759246338018,-500.0,0.00020273,2]
[388591980,1759246338028,-4198.69,0.00020273,2]
[388591981,1759246338038,-2440.56,0.00020273,2]
[388591982,1759246338048,-1238.43,0.00020273,2]
[388591983,1759246338058,-500.0,0.00020273,2]
[388591984,1759246338067,-500.0,0.00020273,2]
[388591985,1759246338076,-150.0,0.00020274,2]
[388591986,1759246338086,-150.0,0.00020274,2]
[388591987,1759246338095,-200.0,0.00020274,2]
[388591988,1759246338106,-500.0,0.00020274,2]
[388591989,1759246338115,-500.0,0.00020274,2]
[388591990,1759246338126,-150.0,0.00020274,2]
[388591991,1759246338135,-552.51845372,0.00020274,2]
[388591992,1759246338145,-482.0,0.00020274,2]
[388591993,1759246338155,-500.0,0.00020274,2]
[388591994,1759246338164,-2070.0,0.00020274,2]
[388591995,1759246338173,-151.83344632,0.00020274,2]
[388591996,1759246338183,-150.0,0.00020274,2]
[388591997,1759246338191,-200.0,0.00020274,2]
[388591998,1759246338201,-1178.0,0.00020274,2]
[388591999,1759246338211,-387.0,0.00020274,2]
[388592000,1759246338220,-150.0,0.00020274,2]
[388592001,1759246338229,-150.36353587,0.00020274,2]
[388592002,1759246338239,-500.0,0.00020274,2]
[388592003,1759246338248,-350.0,0.00020274,2]
[388592004,1759246338257,-946.46,0.00020274,2]
[388592005,1759246338267,-162.380719,0.00020274,2]
[388592006,1759246338276,-728.0,0.00020283,2]
[388592007,1759246338286,-255.63721,0.000203,2]
[388592008,1759246338296,-1000.0,0.000203,2]
[388592009,1759246338305,-1000.0,0.000203,2]
[388592010,1759246338314,-200.0,0.0002031,2]
[388592011,1759246338324,-5000.0,0.00020317,2]
[388592012,1759246338335,-1000.0,0.00020321,2]
[388592013,1759246338345,-25000.0,0.00020326,2]
[388592014,1759246338355,-5000.0,0.00020345,2]
[388592015,1759246338365,-32811.87874948,0.00020347,2]
[388592016,1759246338375,-591.63119991,0.00020347,2]
[388592017,1759246338386,-7000.0,0.00020369,2]
[388592018,1759246338396,-150.0,0.0002037,2]
[388592019,1759246338405,-1253.39,0.00020375,2]
[388592020,1759246338414,-1901.48234373,0.000204,2]
[388592021,1759246338424,-1857.57,0.000204,8]
[388592022,1759246338433,-5196.4,0.00020421,8]
[388592023,1759246338442,-728.0,0.00020429,2]
[388592024,1759246338451,-160.34027331,0.00020447,2]
[388592025,1759246338460,-1972.8,0.00020454,2]
[388592026,1759246338469,-2243.84,0.00020462,2]
[388592027,1759246338479,-5000.0,0.00020477,2]
[388592028,1759246338488,-152.0,0.00020478,4]
[388592029,1759246338498,-2351.0,0.00020479,2]
[388592030,1759246338507,-8000.0,0.00020498,3]
[388592031,1759246338516,-1000.0,0.000205,2]
[388592032,1759246338526,-151.37435263,0.000205,2]
[388592033,1759246338535,-1000.0,0.000205,2]
[388592034,1759246338544,-200.0,0.0002051,2]
[388592035,1759246338553,-5000.0,0.00020515,2]
[388592036,1759246338562,-176.61,0.00020527,2]
[388592037,1759246338573,-500.0,0.00020547,2]
[388592038,1759246338582,-500.0,0.00020547,2]
[388592039,1759246338592,-500.0,0.00020547,2]
[388592040,1759246338601,-500.0,0.00020547,2]
[388592041,1759246338611,-500.0,0.00020547,2]
[388592042,1759246338620,-768.69,0.00020547,2]
[388592043,1759246338630,-500.0,0.00020547,2]
[388592044,1759246338639,-1089.04,0.00020547,2]
[388592045,1759246338649,-500.0,0.00020547,2]
[388592046,1759246338658,-500.0,0.00020547,2]
[388592047,1759246338668,-506.48,0.00020547,2]
[388592048,1759246338680,-698.3,0.00020547,2]
[388592049,1759246338689,-500.0,0.00020547,2]
[388592050,1759246338699,-500.0,0.00020547,2]
[388592051,1759246338710,-500.0,0.00020547,2]
[388592052,1759246338719,-500.0,0.00020547,2]
[388592053,1759246338728,-500.0,0.00020547,2]
[388592054,1759246338738,-500.0,0.00020547,2]
[388592055,1759246338747,-2267.6,0.00020547,2]
[388592056,1759246338756,-923.86,0.00020547,2]
[388592057,1759246338766,-500.0,0.00020547,2]
[388592058,1759246338775,-500.0,0.00020547,2]
[388592059,1759246338786,-1027.62,0.00020547,2]
[388592060,1759246338797,-810.74,0.00020547,2]
[388592061,1759246338806,-500.0,0.00020547,2]
[388592062,1759246338815,-500.0,0.00020547,2]
[388592063,1759246338824,-1823.59,0.00020547,2]
[388592064,1759246338833,-500.0,0.00020547,2]
[388592065,1759246338843,-500.0,0.00020547,2]
[388592066,1759246338851,-1066.14,0.00020547,2]
[388592067,1759246338860,-500.0,0.00020547,2]
[388592068,1759246338869,-2606.43,0.00020547,2]
[388592069,1759246338879,-1171.66,0.00020547,2]
[388592070,1759246338889,-735.97,0.00020547,2]
[388592071,1759246338897,-1812.14,0.00020547,2]
[388592072,1759246338908,-1551.99,0.00020547,2]
[388592073,1759246338917,-500.0,0.00020547,2]
[388592074,1759246338926,-500.0,0.00020547,2]
[388592075,1759246338935,-1192.17,0.00020547,2]
[388592076,1759246338945,-500.0,0.00020547,2]
[388592077,1759246338954,-504.89,0.00020547,2]
[388592078,1759246338963,-500.0,0.00020547,2]
[388592079,1759246338973,-733.15,0.00020547,2]
[388592080,1759246338982,-1722.5,0.00020547,2]
[388592081,1759246338991,-1211.39,0.00020547,2]
[388592082,1759246339001,-3016.63,0.00020547,2]
[388592083,1759246339010,-500.0,0.00020547,2]
[388592084,1759246339020,-623.5,0.00020547,2]
[388592085,1759246339031,-588.19,0.00020547,2]
[388592086,1759246339041,-500.0,0.00020547,2]
[388592087,1759246339051,-500.0,0.00020547,2]
[388592088,1759246339060,-500.0,0.00020547,2]
[388592089,1759246339069,-2482.32,0.00020547,2]
[388592090,1759246339079,-2484.52,0.00020547,2]
[388592091,1759246339088,-500.0,0.00020547,2]
[388592092,1759246339098,-500.0,0.00020547,2]
[388592093,1759246339107,-1090.7,0.00020547,2]
[388592094,1759246339117,-500.0,0.00020547,2]
[388592095,1759246339126,-785.77,0.00020547,2]
[388592096,1759246339140,-1062.55,0.00020547,2]
[388592097,1759246339149,-1331.02,0.00020547,2]
[388592098,1759246339158,-589.91,0.00020547,2]
[388592099,1759246339168,-931.97,0.00020547,2]
[388592100,1759246339177,-1563.28,0.00020547,2]
[388592101,1759246339187,-500.0,0.00020547,2]
[388592102,1759246339196,-500.0,0.00020547,2]
[388592103,1759246339205,-915.49,0.00020547,2]
[388592104,1759246339216,-1552.5,0.00020547,2]
[388592105,1759246339225,-532.13,0.00020547,2]
[388592106,1759246339235,-500.0,0.00020547,2]
[388592107,1759246339244,-691.66,0.00020547,2]
[388592108,1759246339253,-3039.3,0.00020547,2]
[388592109,1759246339263,-500.0,0.00020547,2]
[388592110,1759246339272,-536.23,0.00020547,2]
[388592111,1759246339282,-1159.91,0.00020547,2]
[388592112,1759246339291,-500.0,0.00020547,2]
[388592113,1759246339301,-957.39,0.00020547,2]
[388592114,1759246339310,-1491.93,0.00020547,2]
[388592115,1759246339320,-500.0,0.00020547,2]
[388592116,1759246339331,-500.0,0.00020547,2]
[388592117,1759246339344,-990.94,0.00020547,2]
[388592118,1759246339354,-2050.13,0.00020547,2]
[388592119,1759246339363,-766.29,0.00020547,2]
[388592120,1759246339374,-974.35,0.00020547,2]
[388592121,1759246339386,-1361.8,0.00020547,2]
[388592122,1759246339396,-500.0,0.00020547,2]
[388592123,1759246339405,-1464.06,0.00020547,2]
[388592124,1759246339417,-591.03,0.00020547,2]
[388592125,1759246339427,-500.0,0.00020547,2]
[388592126,1759246339437,-1237.4,0.00020547,2]
[388592127,1759246339445,-651.05,0.00020547,2]
[388592128,1759246339455,-849.98,0.00020547,2]
[388592129,1759246339464,-500.0,0.00020547,2]
[388592130,1759246339473,-1053.26,0.00020547,2]
[388592131,1759246339484,-1260.21,0.00020547,2]
[388592132,1759246339494,-911.31,0.00020547,2]
[388592133,1759246339504,-1356.79,0.00020547,2]
[388592134,1759246339515,-839.62,0.00020547,2]
[388592135,1759246339525,-634.32,0.00020547,2]
[388592136,1759246339535,-2093.53,0.00020547,2]
[388592137,1759246339545,-2064.48,0.00020547,2]
[388592138,1759246339554,-1220.16,0.00020547,2]
[388592139,1759246339564,-551.82,0.00020547,2]
[388592140,1759246339574,-1627.3,0.00020547,2]
[388592141,1759246339583,-502.24,0.00020547,2]
[388592142,1759246339594,-2828.43,0.00020547,2]
[388592143,1759246339604,-545.19,0.00020547,2]
[388592144,1759246339614,-1923.04,0.00020547,2]
[388592145,1759246339624,-658.59,0.00020547,2]
[388592146,1759246339635,-500.0,0.00020547,2]
[388592147,1759246339645,-2567.03,0.00020547,2]
[388592148,1759246339654,-500.0,0.00020547,2]
[388592149,1759246339664,-500.0,0.00020547,2]
[388592150,1759246339674,-500.0,0.00020547,2]
[388592151,1759246339684,-317.8972417,0.00020547,2]
[388592152,1759246339694,-622.44,0.00020547,2]
[388592153,1759246339703,-503.48,0.00020547,2]
[388592154,1759246339712,-979.69,0.00020547,2]
[388592155,1759246339722,-2523.33,0.00020547,2]
[388592156,1759246339731,-500.0,0.00020547,2]
[388592157,1759246339742,-638.1164413,0.00020547,2]
[388592158,1759246339751,-527.54,0.00020547,2]
[388592159,1759246339761,-1101.17,0.00020547,2]
[388592160,1759246339771,-708.18,0.00020547,2]
[388592161,1759246339780,-500.0,0.00020547,2]
[388592162,1759246339790,-566.74,0.00020547,2]
[388592163,1759246339801,-500.0,0.00020547,2]
[388592164,1759246339810,-500.0,0.00020547,2]
[388592165,1759246339821,-500.0,0.00020547,2]
[388592166,1759246339832,-1598.66,0.00020547,2]
[388592167,1759246339841,-2111.09,0.00020547,2]
[388592168,1759246339850,-500.0,0.00020547,2]
[388592169,1759246339860,-500.0,0.00020547,2]
[388592170,1759246339871,-1769.98,0.00020547,2]
[388592171,1759246339880,-500.0,0.00020547,2]
[388592172,1759246339889,-679.95,0.00020547,2]
[388592173,1759246339898,-500.0,0.00020547,2]
[388592174,1759246339908,-2253.64,0.00020547,2]
[388592175,1759246339917,-500.0,0.00020547,2]
[388592176,1759246339928,-500.0,0.00020547,2]
[388592177,1759246339937,-500.0,0.00020547,2]
[388592178,1759246339948,-1217.33,0.00020547,2]
[388592179,1759246339958,-500.0,0.00020547,2]
[388592180,1759246339967,-3100.45,0.00020547,2]
[388592181,1759246339977,-500.0,0.00020547,2]
[388592182,1759246339986,-940.16,0.00020547,2]
[388592183,1759246339996,-569.92,0.00020547,2]
[388592184,1759246340006,-500.0,0.00020547,2]
[388592185,1759246340015,-581.28,0.00020547,2]
[388592186,1759246340024,-500.0,0.00020547,2]
[388592187,1759246340033,-500.0,0.00020547,2]
[388592188,1759246340043,-972.17,0.00020547,2]
[388592189,1759246340053,-698.15,0.00020547,2]
[388592190,1759246340062,-500.0,0.00020547,2]
[388592191,1759246340071,-638.41,0.00020547,2]
[388592192,1759246340082,-500.0,0.00020547,2]
[388592193,1759246340091,-500.0,0.00020547,2]
[388592194,1759246340100,-561.94,0.00020547,2]
[388592195,1759246340109,-500.0,0.00020547,2]
[388592196,1759246340119,-500.0,0.00020547,2]
[388592197,1759246340128,-1421.91,0.00020547,2]
[388592198,1759246340139,-500.0,0.00020547,2]
[388592199,1759246340148,-2562.95,0.00020547,2]
[388592200,1759246340158,-975.88,0.00020547,2]
[388592201,1759246340167,-577.19,0.00020547,2]
[388592202,1759246340177,-500.0,0.00020547,2]
[388592203,1759246340187,-1372.88,0.00020547,2]
[388592204,1759246340196,-500.0,0.00020547,2]
[388592205,1759246340205,-500.0,0.00020547,2]
[388592206,1759246340215,-537.46,0.00020547,2]
[388592207,1759246340225,-500.0,0.00020547,2]
[388592208,1759246340234,-500.0,0.00020547,2]
[388592209,1759246340244,-733.33,0.00020547,2]
[388592210,1759246340253,-500.0,0.00020547,2]
[388592211,1759246340263,-500.0,0.00020547,2]
[388592212,1759246340273,-505.42,0.00020547,2]
[388592213,1759246340282,-1552.86,0.00020547,2]
[388592214,1759246340292,-268.06235984,0.00020547,2]
[388592215,1759246340302,-529.39090554,0.00020547,2]
[388592216,1759246340312,-1466.12,0.00020547,2]
[388592217,1759246340322,-500.0,0.00020547,2]
[388592218,1759246340332,-500.0,0.00020547,2]
[388592219,1759246340345,-500.0,0.00020547,2]